Cogmind - Beta 10.2 @@@ ROGUE MODE // 2021.12.08 @ 23:03:19 Player: Maha Result: Self-destructed Performance ------------- Evolutions (1) 500 Regions Visited (2) 400 Robots Destroyed (16) 80 Value Destroyed (346) 346 Prototype IDs (2) 40 Alien Tech Used (0) 0 Bonus (0) 0 TOTAL SCORE: 1366 Bonus ------- None Cogmind --------- Core Integrity 338/400 Matter 281/300 Energy 250/250 System Corruption 0% Temperature Cool (0) Movement Rolling (110) Ox1 Location -9/Materials Parts ------- > --- POWER (1) -------- Ion Engine > --- PROPULSION (3) --- Compact Wheel Compact Wheel > --- UTILITY (2) ------ Large Storage Unit Large Storage Unit > --- WEAPON (3) ------- Light Assault Rifle > --- INVENTORY (16) --- High-capacity Storage Unit High-capacity Storage Unit High-capacity Storage Unit Sensor Array Signal Interpreter Terrain Scanner Propulsion Shielding Light Armor Plating Tractor Beam Grenade Launcher Peak State ------------ > --- POWER ------------ Ion Engine > --- PROPULSION ------- Compact Wheel Compact Wheel Compact Wheel > --- UTILITY ---------- Large Storage Unit Large Storage Unit > --- WEAPON ----------- Small Laser Assault Rifle Light Assault Rifle > --- INVENTORY -------- High-capacity Storage Unit High-capacity Storage Unit High-capacity Storage Unit Sensor Array Signal Interpreter Terrain Scanner Propulsion Shielding Light Armor Plating Tractor Beam Grenade Launcher [Rating: 10] Favorites ----------- Power Ion Engine Engine Ion Engine Propulsion Wheel Wheel Wheel Utility Large Storage Unit Storage Large Storage Unit Weapon Assault Rifle Energy Gun Medium Laser Ballistic Gun Assault Rifle Build | -11 -10 -9 ------- Run | Scr Mat Mat Slots Evolved 2 | . . 2 Power . | . . . Propulsion 1 | . . 1 Utility . | . . . Weapon 1 | . . 1 Parts Attached 15 | 6 6 3 Power 1 | . 1 . Engine 1 | . 1 . Core . | . . . Reactor . | . . . Propulsion 6 | 2 2 2 Treads . | . . . Leg . | . . . Wheel 6 | 2 2 2 Hover . | . . . Flight . | . . . Utility 4 | 2 2 . Device . | . . . Storage 4 | 2 2 . Processor . | . . . Hackware . | . . . Protection . | . . . Artifact . | . . . Weapon 4 | 2 1 1 Energy Gun 2 | 1 1 . Energy Cannon . | . . . Ballistic Gun 2 | 1 . 1 Ballistic Cannon . | . . . Launcher . | . . . Special Weapon . | . . . Impact Weapon . | . . . Slashing Weapon . | . . . Piercing Weapon . | . . . Special Melee Weapon . | . . . Unidentified Prototypes . | . . . Parts Lost 7 | . 3 4 Power . | . . . Propulsion 4 | . 2 2 Utility . | . . . Weapon 3 | . 1 2 Highest Loss Streak 4 | . 2 4 Average Slot Usage (%) 96 | . 99 80 Engine 13 | . 14 11 Wheel 27 | . 27 26 Storage 26 | . 28 22 Energy Gun 12 | . 14 7 Ballistic Gun 13 | . 14 13 Naked Turns . | . . . Heaviest Build 41 | 12 41 41 Greatest Support 48 | 20 32 48 Greatest Overweight (x) 2 | . 2 1 Average Overweight (x) . | . . . Largest Inventory Capacity 16 | 8 16 16 Average Capacity 12 | 6 12 16 Most Carried 11 | 4 11 11 Average Carried 5 | 2 5 10 Final Capacity 16 | 8 16 16 Final Carried 10 | 2 10 10 Class Distribution -------------------- 100% | Mutant Dominant Class ---------------- Mutant | -10/Materials Mutant | -9/Materials Resources | -11 -10 -9 ----------- Run | Scr Mat Mat Matter Collected 434 | 271 127 36 Remotely . | . . . Salvage Created 571 | 69 325 177 Parts 38 | 1 21 16 Haulers Intercepted . | . . . Recyclers Shooed 2 | 1 1 . Parts Field Recycled . | . . . Retrieved Matter . | . . . Parts Self-Destructed . | . . . Prevented . | . . . Kills | -11 -10 -9 ------- Run | Scr Mat Mat Combat Hostiles Destroyed 14 | . 7 7 Guns 14 | . 7 7 Classes Destroyed 3 | 1 1 1 Recycler 2 | 1 . 1 Swarmer 7 | . . 7 Grunt 7 | . 7 . Best Kill Streak 5 | 1 2 5 Combat Bots Only 5 | . 2 5 Max Kills in Single Turn 1 | 1 1 1 Gunslinging . | . . . Exploded . | . . . Melee . | . . . Uniques/NPCs Destroyed . | . . . Combat | -11 -10 -9 -------- Run | Scr Mat Mat Damage Taken 652 | . 364 288 Core 134 | . 72 62 Absorbed by Shields . | . . . Core Remaining (%) 85 | 100 71 . Volleys Fired 57 | 5 26 26 Largest 3 | 2 2 3 Hottest 80 | 70 70 80 Shots Fired 97 | 10 52 35 Gun 97 | 10 52 35 Cannon . | . . . Launcher . | . . . Special . | . . . Kinetic 60 | 5 26 29 Thermal 37 | 5 26 6 Explosive . | . . . Electromagnetic . | . . . Robot Hit Streak 14 | 3 14 5 Robot Miss Streak 2 | 1 2 2 Penetration Max . | . . . Secondary Targets . | . . . Shots Hit Robots 68 | 7 38 23 Core Hits 30 | 2 16 12 Critical Hits 1 | . . 1 Critical Kills 1 | . . 1 Critical Parts Destroyed . | . . . Melee Attacks . | . . . Impact . | . . . Slashing . | . . . Piercing . | . . . Sneak Attacks . | . . . Combat Hostiles . | . . . Follow-up Attacks . | . . . Damage Inflicted 745 | 93 455 197 Guns 745 | 93 455 197 Cannons . | . . . Explosions . | . . . Melee . | . . . Ramming . | . . . Kinetic 421 | 55 205 161 Thermal 324 | 38 250 36 Explosive . | . . . Electromagnetic . | . . . Impact . | . . . Slashing . | . . . Piercing . | . . . Highest Corruption . | . . . Average Corruption . | . . . Corruption Purged . | . . . Overload Shots . | . . . Overflow Damage . | . . . Projectiles . | . . . Explosions . | . . . Melee . | . . . Knockbacks . | . . . Impact . | . . . Kinetic . | . . . Secondary . | . . . Self-Inflicted Damage . | . . . Shots . | . . . Rammed . | . . . Targets Rammed . | . . . Kicked . | . . . Crushed . | . . . Highest Temperature 119 | . 119 9 Average Temperature 41 | . 44 5 Received Heat Transfer 207 | . 207 . Siege Activations . | . . . Robots Corrupted . | . . . Combat Hostiles . | . . . Parts Fried . | . . . Impact Corruptions . | . . . Robots Melted . | . . . Combat Hostiles . | . . . Parts Melted 2 | . 2 . Heat Transferred 831 | 111 645 75 Parts Sabotaged . | . . . Parts Stolen . | . . . Parts Stripped . | . . . Power Chain Reactions . | . . . Missiles Intercepted . | . . . Alert | -11 -10 -9 ------- Run | Scr Mat Mat Peak Influence 176 | 5 176 141 Initial 16 | . 3 16 Average 46 | 1 50 57 Maximum Alert Level . | . . . Low Security (%) 100 | 100 100 100 Level 1 . | . . . Level 2 . | . . . Level 3 . | . . . Level 4 . | . . . Level 5 . | . . . High Security . | . . . Max Security . | . . . Squads Dispatched 2 | . 2 . Investigation . | . . . Extermination . | . . . Reinforcement 2 | . 2 . Assault . | . . . Garrison . | . . . Intercept . | . . . Construction Impeded . | . . . Haulers Reinforced . | . . . Stealth | -11 -10 -9 --------- Run | Scr Mat Mat Distress Signals 1 | . . 1 Communications Jammed . | . . . Distress Signals . | . . . Times Spotted 23 | . 15 8 Peak Tracking Total 5 | . 4 5 Tactical Retreats . | . . . Traps | -11 -10 -9 ------- Run | Scr Mat Mat Traps Triggered . | . . . Indirectly . | . . . Trap Hack Attempts . | . . . Triggered . | . . . Disarmed . | . . . Reprogrammed . | . . . Reused . | . . . Traps Extracted . | . . . Installed . | . . . Triggered . | . . . Machines | -11 -10 -9 ---------- Run | Scr Mat Mat Machines Disabled . | . . . Max in Single Turn . | . . . Machines Sabotaged . | . . . Garrisons Compromised . | . . . Overloaded Fab Kills . | . . . Fab Network Shutdowns . | . . . Hacking | -11 -10 -9 --------- Run | Scr Mat Mat Machines Accessed 4 | . 4 . Terminals 4 | . 4 . Fabricators . | . . . Repair Stations . | . . . Recycling Units . | . . . Scanalyzers . | . . . Garrison Access . | . . . Total Hacks 14 | . 14 . Successful 6 | . 6 . Failed 8 | . 8 . Catastrophic 1 | . 1 . Database Lockouts . | . . . Manual . | . . . Terminals 14 | . 14 . Fabricators . | . . . Repair Stations . | . . . Recycling Units . | . . . Scanalyzers . | . . . Garrison Access . | . . . Terminal Hacks 6 | . 6 . Prototype ID Bank 1 | . 1 . Branch Access Points 1 | . 1 . Alert Level 1 | . 1 . Locate Traps 1 | . 1 . Patrol Status 1 | . 1 . Zone Layout 1 | . 1 . Fabricator Hacks . | . . . Repair Station Hacks . | . . . Recycling Unit Hacks . | . . . Scanalyzer . | . . . Garrison Access Hacks . | . . . Unauthorized Hacks . | . . . Terminals . | . . . Fabricators . | . . . Repair Stations . | . . . Recycling Units . | . . . Scanalyzers . | . . . Garrison Access . | . . . Data Cores Recovered . | . . . Used . | . . . Hacking Detections 4 | . 4 . Full Trace Events . | . . . Feedback Events . | . . . Feedback Blocked . | . . . Robot Schematics Acquired . | . . . Robots Built . | . . . Matter . | . . . Time . | . . . Total Robot Build Rating . | . . . Part Schematics Acquired . | . . . Parts Built . | . . . Matter . | . . . Time . | . . . Total Part Build Rating . | . . . Parts Repaired . | . . . Time . | . . . Parts Recycled . | . . . Recycled Matter . | . . . Retrieved Matter . | . . . Retrieved Components . | . . . Parts Scanalyzed . | . . . Part Schematics Acquired . | . . . Parts Damaged . | . . . Bothacking | -11 -10 -9 ------------ Run | Scr Mat Mat Used RIF Installer . | . . . Robots Hacked . | . . . Non-combat . | . . . Combat . | . . . Robot Hacks Applied . | . . . Relay Couplers Released . | . . . Robots Rewired . | . . . Allies Hacked . | . . . Hacks Repelled . | . . . Allies | -11 -10 -9 -------- Run | Scr Mat Mat Total Allies . | . . . Largest Group . | . . . Highest-Rated Group . | . . . Highest-Rated Ally . | . . . Total Orders . | . . . Ally Attacks . | . . . Total Damage . | . . . Kills . | . . . Allies Corrupted . | . . . Allies Melted . | . . . Intel | -11 -10 -9 ------- Run | Scr Mat Mat Robot Analysis Total . | . . . Derelict Logs Recovered . | . . . Drone Launches . | . . . Drone Recoveries . | . . . Exploration | -11 -10 -9 ------------- Run | Scr Mat Mat Turns Passed 756 | 71 565 120 Spaces Moved 479 | 54 374 51 Core 7 | 7 . . Treads . | . . . Legs . | . . . Wheels 472 | 47 374 51 Hover . | . . . Flight . | . . . Fastest Speed 50 | 50 80 100 Average Speed 91 | 76 91 106 Slowest Speed 110 | 80 110 110 Overloaded Moves . | . . . Propulsion Burnouts . | . . . Robots Hopped . | . . . Cave-ins Triggered . | . . . Exploration Rate (%) 29 | 3 78 7 Regions Visited 2 Branch Regions . Pre-discovered Areas . | . . . Known Exits Taken . | . . . Unknown Exits Taken 2 | 1 1 . Scrap Searched . | . . . Spaces Dug . | . . . Terrain Destroyed . | . . . Melee . | . . . Projectile . | . . . AOE . | . . . Terrain Rammed . | . . . Walls Destroyed . | . . . Machines Disabled . | . . . Actions | -11 -10 -9 --------- Run | Scr Mat Mat Total 705 | 74 544 87 Wait 127 | . 123 4 Move 477 | 53 373 51 Hop . | . . . Pick Up 26 | 9 14 3 Fast Attach . | . . . Attach 13 | 6 4 3 Detach . | . . . Swap 2 | . 2 . Drop 3 | 1 2 . Fire 57 | 5 26 26 Melee . | . . . Ram . | . . . Kick . | . . . Crush . | . . . Escape Stasis . | . . . Rewire . | . . . Trap . | . . . Miscellaneous . | . . . Route ------- -11/Scrapyard -10/Materials (discovered 3 exits: [*Mat] / *Min x2) -9/Materials History --------- Turn | Location | Event 20 | -11/Scrapyard | Discovered new exit (range 15) 72 | -11/Scrapyard | Entered Materials 202 | -10/Materials | Identified exit to Mines 302 | -10/Materials | Build established: Mutant 601 | -10/Materials | Discovered new exit (range 12) 637 | -10/Materials | Entered another Materials area 637 | -9/Materials | Evolved 2 slots: Propulsion x1, Weapon x1 757 | -9/Materials | Self-destructed Last Messages --------------- 00602_ K-01 Serf collects debris. PARAMETERS=PROPULSION_1,WEAPON_1 LOCATION=UNKNOWN GOAL=ESCAPE 00649_ K-01 Serf collects debris. 00667_ S-10 Pest suffers critical hit. 00667_ S-10 Pest destroyed. 00677_ Acquired 12 matter. 00681_ Acquired Lgt. Assault Rifle. 00684_ Acquired 7 matter. 00687_ Acquired 3 matter. 00693_ R-06 Scavenger destroyed. 00697_ Acquired Com. Wheel. 00699_ Acquired 14 matter. 00701_ Acquired Com. Wheel. 00718_ Sml. Laser destroyed. 00719_ Assault Rifle destroyed. 00725_ S-10 Pest destroyed. 00741_ Com. Wheel destroyed. 00748_ S-10 Pest destroyed. Map ----- +----------------------------------------------------+ | ???????????????????????????# #????? | | ???????????????????????????# #????? | | ???????????????????????????# #????? | | ????????????????????######## #????? | | ????????????????????# #????? | | ????????????????????# #????? | | ????????????????????# #????? | | ?????????????######## ########????? | | ?????????????# # #???????????? | | ?????????????# #= #???????????? | | ?????????????# %+* #???????????? | | ?????????????# """ #= #???????????? | | ?????????????# """ #%! #???????????? | | ?????????????# """ #! #???????????? | | ?????????????######## #???????????? | | ????????????????????# #???????????? | | ????????????????????# #???????????? | | ????????????????????# #???????????? | | ????????????????????# #???????????? | | ????????????????????# #???????????? | | ????????????????????# #???????????? | | ????????????????????# ###########?? | | ????????????????????# # T #?? | | ????????????????????# # #?? | | ????????????#####+### #= #?? | | ???????? #@ #?? | | ???????? %+%% #?? | | ???????? ==#*""" #?? | | ?????????#+########## %#=""" #?? | | ????????????????????# # """ #?? | | ????????????????????# ###########?? | | ????????????????????# #???????????? | | ????????????????????# #???????????? | | ???????????????????? #???????????? | | ???????????????????## ????????????? | | ????????????????????# ????????????? | | ????????????????????# ????????????? | | ????????????????????# ????????????? | | ????????????????????# ????????????? | | ????????????????????# ????????????? | | ????????????????????? ????????????? | | ????????????????????????????????????? | | ????????????????????????????????????? | | ????????????????????????????????????? | | ????????????????????????????????????? | | ????????????????????????????????????? | | ????????????????????????????????????? | | ????????????????????????????????????? | | ????????????????????????????????????? | | ????????????????????????????????????? | +----------------------------------------------------+ Best States ------------- Heat Dissipation 28 Energy Generation 10 Energy Capacity 250 Matter Stores 300 Matter Capacity 300 Sight Range 16 Terrain Scan Density 10 Evasion (%) 44 Item Schematics ----------------- None Robot Schematics ------------------ None Fabricated ------------ Nothing Alien Tech Used ----------------- None Achievements -------------- None Challenges ------------ None Game ------ Seed SpikedFusionCycler Manual? 0 Play Time 00:12:56 Cumulative 31.7 hours Start 2021.12.08 @ 22:04:03 End 2021.12.08 @ 23:03:19 Sessions 1 Manual Loads 0 Difficulty Rogue Special Mode None Game No. 35 Rogue 35 Adventurer 0 Explorer 0 Win Type - Total 0 Types 0/0/0/0/0/0/0/0/0 Lore% 39 Gallery% 36 Achievement% 31 Wizard Run 0 Options --------- ASCII 0 Keyboard 0 Movement Numpad Keybinds 0 Fullscreen 1 Font 12/Smallcaps Map View 83x54 Tactical HUD 1 Map Filters NONE Filters NONE Steam 1 RUN: 47051690-f006-427d-9a47-3133bdc8c16d